bitfinex-derivatives/quotes_BTCF0:USTF0_20210108
["timestamp","ask_amount","ask_price","bid_price","bid_amount"]
[1610109497289,0.24264608,41407.0,41387.0,0.00028649]
[1610109497489,1.74264608,41407.0,41387.0,0.00028649]
[1610109498089,0.24264608,41407.0,41387.0,0.00028649]
[1610109498290,0.421648,41375.0,41364.0,0.02981316]
[1610109498492,0.421648,41375.0,41364.0,0.02952664]
[1610109498692,0.421648,41375.0,41374.0,0.13632608]
[1610109498991,0.13632608,41389.0,41374.0,0.16614047]
[1610109499191,0.10573,41392.0,41374.0,0.16614047]
[1610109499391,0.10573,41392.0,41375.0,0.02981381]
[1610109499792,0.10632,41407.0,41375.0,0.02981381]
[1610109499996,3.32282,41407.0,41375.0,0.02981381]
[1610109500593,0.13632608,41392.0,41381.0,0.13632608]
[1610109500994,0.13632608,41392.0,41382.0,0.02981457]
[1610109501696,0.13632608,41392.0,41382.0,0.02952804]
[1610109501895,0.13632608,41392.0,41383.0,0.00028653]
[1610109502295,0.13632608,41392.0,41382.0,0.02981457]
[1610109502494,0.13632608,41392.0,41384.0,0.00028653]
[1610109502695,0.13632608,41392.0,41390.0,0.13632608]
[1610109502997,0.13632608,41392.0,41391.0,0.00028653]
[1610109503596,0.13632608,41392.0,41373.0,0.02952898]
[1610109503796,0.13632608,41392.0,41391.0,0.00028654]
[1610109503996,0.0942,41397.0,41373.0,0.02981552]
[1610109504797,0.0942,41397.0,41396.0,0.13632608]
[1610109505199,0.10632,41407.0,41396.0,0.13661252]
[1610109505398,3.6814,41430.0,41396.0,0.13661252]
[1610109505603,3.6814,41430.0,41397.0,0.02981021]
[1610109506698,0.5,41400.0,41397.0,0.02981021]
[1610109506899,0.5,41400.0,41384.0,0.02980772]
[1610109507100,0.5,41400.0,41398.0,0.02980755]
[1610109507503,0.5,41400.0,41385.0,0.02980674]
[1610109507705,0.5,41400.0,41384.0,0.02980647]
[1610109507905,0.5,41400.0,41386.0,0.02980669]
[1610109508305,0.5,41400.0,41385.0,0.02980727]
[1610109508602,0.5,41400.0,41399.0,0.13632608]
[1610109508801,0.5,41400.0,41386.0,0.02980569]
[1610109509103,0.5,41400.0,41399.0,0.02980681]
[1610109509302,0.5,41400.0,41387.0,0.02980729]
[1610109509503,0.5,41400.0,41399.0,0.02980833]
[1610109509802,0.5,41400.0,41388.0,0.02980859]
[1610109510000,0.5,41400.0,41399.0,0.02980786]
[1610109510301,0.5,41400.0,41384.0,0.0298084]
[1610109510500,0.5,41400.0,41383.0,0.10625]
[1610109510501,0.5,41400.0,41399.0,0.02980896]
[1610109510704,0.5,41400.0,41399.0,0.16613504]
[1610109510902,0.5,41400.0,41399.0,0.13632608]
[1610109511102,0.5,41400.0,41399.0,0.0298112]
[1610109511302,0.5,41400.0,41386.0,0.02981183]
[1610109511602,0.5,41400.0,41399.0,0.00028643]
[1610109512002,0.5,41400.0,41387.0,0.02952646]
[1610109512003,0.5,41400.0,41387.0,0.02981289]
[1610109512202,0.5,41400.0,41399.0,0.00028643]
[1610109512402,0.5,41400.0,41388.0,0.02981426]
[1610109512602,0.5,41400.0,41399.0,0.00028645]
[1610109513404,0.5,41400.0,41390.0,0.00028645]
[1610109513705,0.5,41400.0,41389.0,0.02952869]
[1610109513706,0.5,41400.0,41399.0,0.00028645]
[1610109514003,0.5,41400.0,41391.0,0.00028645]
[1610109514305,0.5,41400.0,41399.0,0.00028645]
[1610109514602,0.63632608,41400.0,41394.0,0.13632608]
[1610109514802,0.63632608,41400.0,41399.0,0.00028645]
[1610109515003,0.63632608,41400.0,41390.0,0.00028645]
[1610109515204,0.63632608,41400.0,41399.0,0.00028645]
[1610109515606,0.63632608,41400.0,41391.0,0.00028645]
[1610109515805,0.63632608,41400.0,41399.0,0.00028645]
[1610109516009,0.63632608,41400.0,41392.0,0.00028645]
[1610109516310,0.63632608,41400.0,41399.0,0.00028645]
[1610109516506,0.63632608,41400.0,41368.0,0.02952935]
[1610109516707,3.1675,41394.0,41374.0,0.13632608]
[1610109516909,3.28449,41394.0,41374.0,0.13632608]
[1610109517309,3.28449,41394.0,41375.0,0.00028648]
[1610109518608,0.13632608,41376.0,41375.0,0.00028648]
[1610109519810,0.10575,41381.0,41375.0,0.00028648]
[1610109520610,0.10575,41381.0,41380.0,0.13632608]
[1610109520812,0.13632608,41390.0,41380.0,0.13632608]
[1610109521012,0.13632608,41390.0,41380.0,0.0298198]
[1610109521411,0.13632608,41390.0,41381.0,0.02982019]
[1610109521912,0.13632608,41390.0,41364.0,0.02953454]
[1610109522112,0.13632608,41390.0,41382.0,0.02982157]
[1610109522313,0.13632608,41390.0,41365.0,0.02982157]
[1610109522714,0.58872608,41390.0,41364.0,0.02982146]
[1610109522915,0.13632608,41390.0,41366.0,0.02982077]
[1610109523113,3.2478,41382.0,41365.0,0.02982042]
[1610109523315,3.37419,41382.0,41365.0,0.02982042]
[1610109523614,3.37419,41382.0,41366.0,0.02982388]
[1610109523816,0.0722,41381.0,41366.0,0.02982388]
[1610109524015,0.0722,41381.0,41368.0,0.00028654]
[1610109524315,0.0722,41381.0,41354.0,0.02982603]
[1610109524614,4.87419,41382.0,41353.0,0.13979893]
[1610109524615,0.13632608,41370.0,41369.0,0.00028656]
[1610109524815,0.13632608,41370.0,41366.0,0.13632608]
[1610109525015,0.13632608,41370.0,41367.0,0.02953997]
[1610109525216,1.5,41369.0,41367.0,0.02982655]
[1610109525517,1.976,41368.0,41367.0,0.02982655]
[1610109525915,1.976,41368.0,41345.0,0.05908795]
[1610109526115,1.5,41368.0,41343.0,0.05908743]
[1610109526318,3.4256,41354.0,41346.0,0.02982853]
[1610109526518,3.4256,41354.0,41344.0,0.02982962]
[1610109526816,3.4256,41354.0,41325.0,2.63605474]
[1610109526817,0.13632608,41345.0,41336.0,0.08892324]
[1610109527014,0.13632608,41345.0,41344.0,0.02983039]
[1610109527214,0.07766,41358.0,41344.0,0.02983039]
[1610109527418,0.073,41345.0,41337.0,0.0298295]
[1610109527615,0.073,41345.0,41334.0,0.02983027]
[1610109527816,0.073,41345.0,41338.0,0.02983094]
[1610109528016,0.07766,41358.0,41338.0,0.02983094]
[1610109528216,0.07766,41358.0,41335.0,0.02983565]
[1610109528416,0.0714,41357.0,41339.0,0.00028378]
[1610109528718,0.13632608,41344.0,41338.0,0.13632608]
[1610109528917,0.13632608,41344.0,41340.0,0.00028378]
[1610109529115,0.13632608,41344.0,41339.0,0.00028378]
[1610109529516,0.13632608,41344.0,41341.0,0.00028378]
[1610109529716,0.13632608,41344.0,41340.0,0.00028378]
[1610109530016,0.13632608,41344.0,41338.0,0.13632608]
[1610109530217,0.07766,41358.0,41343.0,0.00028378]
[1610109530416,0.07766,41358.0,41339.0,0.02983779]
[1610109530616,0.07766,41358.0,41339.0,0.12916779]
[1610109530817,0.07766,41358.0,41357.0,0.13632608]
[1610109531016,0.13632608,41369.0,41357.0,0.13632608]
[1610109531217,0.13632608,41369.0,41358.0,0.00028373]
[1610109532419,0.11187,41373.0,41358.0,0.00028373]
[1610109532723,0.0731,41375.0,41372.0,0.13632608]
[1610109533118,0.13632608,41387.0,41373.0,0.00028363]
[1610109533420,0.5,41400.0,41373.0,0.00028363]
[1610109534121,0.5,41400.0,41373.0,0.02981399]
[1610109534818,0.5,41400.0,41399.0,0.13632608]
[1610109535218,0.5,41400.0,41399.0,0.13660956]
[1610109535719,0.3687,41400.0,41399.0,0.13660956]
[1610109545331,0.3687,41400.0,41399.0,0.13632608]
[1610109545631,0.3687,41400.0,41399.0,0.13661229]
[1610109545931,0.3687,41400.0,41399.0,0.13632608]
[1610109546131,0.8884,41400.0,41372.0,0.10371]
[1610109546331,0.3687,41400.0,41362.0,0.10801]
[1610109546533,3.6462,41393.0,41373.0,0.00028626]
[1610109546731,0.13632608,41385.0,41384.0,0.13632608]
[1610109546933,0.13632608,41385.0,41351.0,2.71244122]
[1610109546934,0.59322608,41385.0,41374.0,0.00028626]
[1610109547233,0.13632608,41385.0,41352.0,0.02981963]
[1610109547433,2.7772,41375.0,41351.0,0.08188]
[1610109547634,2.87616,41375.0,41341.0,2.48501758]
[1610109547836,2.87616,41375.0,41353.0,0.00028633]
[1610109548036,2.87616,41375.0,41346.0,0.12161]
[1610109548252,2.87616,41375.0,41354.0,0.00028633]
[1610109548434,0.09896,41375.0,41354.0,0.00028633]
[1610109548736,3.9438,41356.0,41347.0,0.02982374]
[1610109548936,0.13632608,41365.0,41355.0,0.00028633]
[1610109549137,0.13632608,41365.0,41348.0,0.00028635]
[1610109549336,0.25359608,41365.0,41356.0,0.00028638]
[1610109549535,0.25359608,41365.0,41349.0,0.0002864]
[1610109549737,3.3498,41357.0,41349.0,0.0002864]
[1610109549936,3.3498,41357.0,41337.0,0.02954353]
[1610109549937,3.3498,41357.0,41337.0,0.0002864]
[1610109550235,3.3498,41357.0,41336.0,0.0889]
[1610109550236,3.3498,41357.0,41350.0,0.0002864]
[1610109550436,3.3498,41357.0,41338.0,0.00028642]
[1610109550737,0.25359608,41365.0,41356.0,0.13632608]
[1610109551137,0.25359608,41365.0,41357.0,0.00028646]
[1610109551540,0.11727,41365.0,41357.0,0.00028646]
[1610109551739,0.09896,41375.0,41357.0,0.00028646]
[1610109552541,3.5233,41378.0,41356.0,0.13632608]
[1610109552840,0.13632608,41380.0,41377.0,0.13632608]
[1610109553040,3.24502608,41380.0,41377.0,0.13632608]
[1610109553342,3.24502608,41380.0,41378.0,0.00028641]
[1610109553540,3.24502608,41380.0,41355.0,0.12259]
[1610109553739,3.32255608,41380.0,41355.0,0.12259]
[1610109554141,3.32255608,41380.0,41356.0,0.00028639]
[1610109554540,3.18623,41380.0,41356.0,0.00028639]
[1610109554740,3.18623,41380.0,41373.0,0.13632608]
[1610109555042,0.07753,41380.0,41373.0,0.13632608]
[1610109555340,0.07753,41380.0,41374.0,0.00028636]
[1610109555541,0.13632608,41381.0,41374.0,0.00028636]
[1610109556039,3.6481,41392.0,41374.0,0.00028636]
[1610109556841,0.13632608,41375.0,41374.0,0.00028636]
[1610109557241,0.13632608,41375.0,41365.0,0.12206]
[1610109557242,0.13632608,41375.0,41366.0,0.00028636]
[1610109557544,0.13632608,41375.0,41374.0,0.00028636]
[1610109557743,0.13632608,41375.0,41367.0,0.00028636]
[1610109557942,0.24021608,41375.0,41367.0,0.00028636]
[1610109558242,0.24021608,41375.0,41359.0,0.13632608]
[1610109558243,0.24021608,41375.0,41368.0,0.00028636]
[1610109558843,0.13632608,41369.0,41368.0,0.13632608]
[1610109559345,0.13632608,41369.0,41368.0,0.00028639]
[1610109559746,0.13632608,41369.0,41356.0,0.00028639]
[1610109560346,1.5,41368.0,41356.0,0.00028639]
[1610109560946,0.13632608,41357.0,41347.0,0.00028641]
[1610109561949,0.0988,41360.0,41347.0,0.00028641]
[1610109562648,3.8526,41372.0,41347.0,0.11210641]
[1610109562847,0.13632608,41370.0,41367.0,0.13632608]
[1610109563448,0.13632608,41370.0,41368.0,0.00028643]
[1610109563748,0.10389,41375.0,41368.0,0.00028643]
[1610109563949,0.10818,41384.0,41367.0,0.13632608]
[1610109564153,3.0787,41389.0,41367.0,0.13632608]
[1610109564352,3.0787,41389.0,41369.0,0.0002864]
[1610109564552,3.0787,41389.0,41368.0,0.0002864]
[1610109564752,3.0787,41389.0,41370.0,0.00028638]
[1610109564953,0.34978836,41380.0,41369.0,0.00028638]
[1610109565351,0.34978836,41380.0,41357.0,0.02982724]
[1610109565555,0.34978836,41380.0,41370.0,0.00028638]
[1610109565752,0.34978836,41380.0,41365.0,0.11717]
[1610109566055,0.34978836,41380.0,41366.0,0.00028635]
[1610109566952,0.13632608,41378.0,41370.0,0.13632608]
[1610109567352,0.13632608,41378.0,41371.0,0.00028635]
[1610109568253,0.13632608,41378.0,41366.0,0.00028635]
[1610109568453,0.13632608,41378.0,41372.0,0.00028635]
[1610109568653,0.26389608,41378.0,41367.0,0.00028637]
[1610109568852,0.26389608,41378.0,41373.0,0.13632608]
[1610109569056,0.26389608,41378.0,41373.0,0.13661245]
[1610109569255,0.26389608,41378.0,41373.0,0.13632608]
[1610109569554,0.26389608,41378.0,41374.0,0.00028637]
[1610109569756,0.12757,41378.0,41374.0,0.00028637]
[1610109570255,0.34978836,41380.0,41374.0,0.00028637]
[1610109570857,0.34978836,41380.0,41379.0,0.13632608]
[1610109571357,0.34978836,41380.0,41379.0,0.13661241]
[1610109571557,0.34978836,41380.0,41379.0,0.16614907]
[1610109572957,0.34978836,41380.0,41379.0,0.13661241]
[1610109573958,0.34978836,41380.0,41379.0,0.16615042]
[1610109575262,0.34978836,41380.0,41379.0,0.02982434]
[1610109575860,0.34978836,41380.0,41366.0,0.10807]
[1610109575861,0.34978836,41380.0,41367.0,0.02982548]
[1610109576059,0.34978836,41380.0,41366.0,0.10807]
[1610109576060,0.34978836,41380.0,41379.0,0.00028636]
[1610109576259,0.34978836,41380.0,41368.0,0.02982661]
[1610109576658,0.34978836,41380.0,41357.0,0.02982799]
[1610109576860,0.34978836,41380.0,41369.0,0.02982903]
[1610109577059,0.34978836,41380.0,41362.0,0.13632608]
[1610109577459,0.34978836,41380.0,41370.0,0.02982942]
[1610109577659,0.34978836,41380.0,41363.0,0.02982847]
[1610109578859,0.13632608,41364.0,41363.0,0.02982847]
[1610109582962,0.10417,41374.0,41363.0,0.02982847]
[1610109584960,0.10417,41374.0,41368.0,0.13632608]
[1610109585159,0.10417,41374.0,41369.0,0.02982926]
[1610109587062,0.13632608,41370.0,41369.0,0.02982926]
[1610109587462,0.23826608,41370.0,41369.0,0.02982926]
[1610109588663,0.23826608,41370.0,41340.0,0.05908443]
[1610109588664,0.23826608,41370.0,41348.0,0.02982984]
[1610109588864,0.23826608,41370.0,41331.0,2.63089141]
[1610109588865,0.23826608,41370.0,41369.0,0.00028642]
[1610109589064,0.23826608,41370.0,41349.0,0.02983205]
[1610109589265,3.21006608,41370.0,41349.0,0.02983205]
[1610109589466,1.5,41369.0,41332.0,0.08892988]
[1610109589666,1.5,41369.0,41350.0,0.02983471]
[1610109589865,1.5,41369.0,41333.0,0.02983851]
[1610109590166,3.215,41341.0,41332.0,0.02983868]
[1610109590368,4.715,41341.0,41332.0,0.02983868]
[1610109590568,4.715,41341.0,41334.0,0.02984183]
[1610109590767,3.215,41341.0,41333.0,0.02984297]
[1610109590968,0.13632608,41334.0,41319.0,0.13632608]
[1610109591568,0.13632608,41334.0,41320.0,0.0298451]
[1610109592972,0.13632608,41334.0,41328.0,0.13632608]
[1610109593571,0.13632608,41334.0,41329.0,0.02984382]
[1610109594173,0.13632608,41334.0,41329.0,0.00028656]
[1610109594372,0.13632608,41334.0,41317.0,0.02984493]
[1610109594572,0.4728,41330.0,41317.0,0.02955837]
[1610109594977,0.4728,41330.0,41327.0,0.13632608]
[1610109595174,0.11815,41334.0,41327.0,0.13632608]
[1610109595374,0.11815,41334.0,41328.0,0.00028657]
[1610109595775,0.09127,41345.0,41328.0,0.00028657]
[1610109595976,3.1104,41362.0,41328.0,0.02984547]
[1610109596176,3.1104,41362.0,41327.0,0.13632608]
[1610109596377,3.1104,41362.0,41326.0,0.11524]
[1610109596577,3.1104,41362.0,41329.0,0.02984389]
[1610109596877,3.1104,41362.0,41327.0,0.02984279]
[1610109597077,0.13632608,41355.0,41346.0,0.13632608]
[1610109597378,0.23737608,41355.0,41346.0,0.13632608]
[1610109597677,0.23737608,41355.0,41347.0,0.00028651]
[1610109598477,0.10105,41355.0,41347.0,0.00028651]
[1610109598980,0.10105,41355.0,41354.0,0.13632608]
[1610109599779,0.10194,41370.0,41354.0,0.13632608]
[1610109599980,0.21528608,41384.0,41354.0,0.13632608]
[1610109600182,0.21528608,41384.0,41355.0,0.02983273]
[1610109600983,0.21528608,41384.0,41376.0,0.13632608]
[1610109600984,0.07896,41384.0,41376.0,0.13632608]
[1610109601286,2.7671,41395.0,41376.0,0.13632608]
[1610109601583,2.7671,41395.0,41337.0,0.09743]
[1610109601584,2.7671,41395.0,41377.0,0.00028643]
[1610109601984,2.7671,41395.0,41338.0,2.51533895]
[1610109602183,2.86445,41395.0,41378.0,0.00028643]
[1610109602482,2.86445,41395.0,41339.0,2.5758969]
[1610109602684,2.86445,41395.0,41379.0,0.00028643]
[1610109602885,0.09735,41395.0,41379.0,0.00028643]
[1610109603085,0.09735,41395.0,41386.0,0.13632608]
[1610109605085,0.09735,41395.0,41394.0,0.13632608]
[1610109605685,0.09735,41395.0,41394.0,0.13661047]
[1610109607386,0.00289128,41436.0,41394.0,0.13661047]
[1610109607785,0.0028943,41438.0,41395.0,0.00028434]
[1610109607986,0.00289406,41439.0,41395.0,0.00028434]
[1610109608387,0.00992187,41440.0,41395.0,0.00028434]
[1610109608590,0.00289343,41440.0,41395.0,0.00028434]
[1610109608989,0.13632608,41407.0,41399.0,0.13632608]
[1610109609389,0.13632608,41407.0,41399.0,0.1366104]
[1610109612996,0.50502608,41400.0,41399.0,0.1366104]
[1610109613396,0.50502608,41400.0,41399.0,0.00028432]
[1610109613897,0.50502608,41400.0,41362.0,0.02981364]
[1610109614096,0.60593608,41400.0,41399.0,0.00028432]
[1610109614298,0.60593608,41400.0,41356.0,0.0298161]
[1610109614506,0.60593608,41400.0,41363.0,0.02953184]
[1610109614797,0.60593608,41400.0,41357.0,0.02981641]
[1610109614998,0.60593608,41400.0,41387.0,0.13632608]
[1610109615198,0.46961,41400.0,41387.0,0.13632608]
[1610109615600,0.46961,41400.0,41388.0,0.00028436]
[1610109616401,0.24541,41400.0,41388.0,0.00028436]
[1610109616601,0.39542747,41395.0,41388.0,0.00028436]
[1610109616799,0.27442747,41395.0,41388.0,0.00028436]
[1610109617098,0.27442747,41395.0,41394.0,0.13632608]
[1610109617299,0.27442747,41395.0,41394.0,1.63632608]
[1610109617502,0.27442747,41395.0,41394.0,1.63661027]
[1610109617800,0.13632608,41457.0,41394.0,1.66612315]
[1610109617999,0.13632608,41457.0,41394.0,1.63661027]
[1610109618199,0.13632608,41457.0,41395.0,0.00028414]
[1610109618399,0.00289005,41473.0,41395.0,0.00028414]
[1610109618599,0.49557483,41477.0,41395.0,0.00028414]
[1610109618600,0.00288793,41476.0,41395.0,1.50028414]
[1610109619102,0.00288926,41478.0,41477.0,0.13632608]
[1610109619300,0.00289149,41481.0,41477.0,0.13632608]
[1610109619501,0.00289153,41486.0,41408.0,0.12616]
[1610109619902,0.00289136,41487.0,41408.0,0.12616]
[1610109620102,0.00289136,41487.0,41409.0,0.00028408]
[1610109620402,0.294,41492.0,41409.0,0.00028408]
[1610109621202,0.294,41492.0,41474.0,0.13632608]
[1610109621405,0.2813,41497.0,41474.0,0.13632608]
[1610109621605,0.00289777,41506.0,41474.0,0.13632608]
[1610109622015,0.00289864,41509.0,41474.0,0.13632608]
[1610109622203,0.00703956,41510.0,41474.0,0.13632608]
[1610109622204,0.00289558,41513.0,41474.0,0.13632608]
[1610109622605,0.2935,41515.0,41474.0,0.13632608]
[1610109623205,0.13632608,41515.0,41514.0,0.13632608]
[1610109623405,0.13632608,41515.0,41445.0,0.11629]
[1610109624706,0.25625608,41515.0,41445.0,0.11629]
[1610109625110,0.11993,41515.0,41500.0,0.13632608]
[1610109625307,0.11993,41515.0,41455.0,0.11331]
[1610109627112,0.11993,41515.0,41493.0,0.13632608]
[1610109629213,0.11993,41515.0,41470.0,0.11563]
[1610109629214,0.25625608,41515.0,41514.0,0.13632608]
[1610109629512,0.25625608,41515.0,41480.0,0.09721]
[1610109630917,0.25625608,41515.0,41470.0,0.11563]
[1610109631217,0.11993,41515.0,41493.0,0.13632608]
[1610109631418,3.6086,41524.0,41493.0,0.13632608]
[1610109631721,0.2922,41532.0,41493.0,0.13632608]
[1610109632120,0.00029472,41531.0,41493.0,0.13632608]
[1610109632316,0.12157472,41531.0,41493.0,0.13632608]
[1610109632717,0.00029472,41530.0,41493.0,0.13632608]
[1610109633221,0.13632608,41494.0,41493.0,0.13632608]
[1610109633430,0.24273608,41494.0,41493.0,0.13632608]
[1610109633816,0.10641,41494.0,41493.0,0.13632608]
[1610109635528,0.10641,41494.0,41470.0,0.11563]
[1610109635716,0.10641,41494.0,41455.0,0.11331]
[1610109635922,0.10641,41494.0,41446.0,0.2998]
[1610109637219,0.10641,41494.0,41493.0,0.13632608]
[1610109638620,0.2823,41520.0,41493.0,0.13632608]
[1610109638820,3.7216,41551.0,41493.0,0.13632608]
[1610109639021,0.00029467,41519.0,41493.0,0.13632608]
[1610109639221,0.00029467,41519.0,41471.0,0.10204]
[1610109639222,0.08456,41519.0,41509.0,0.13632608]
[1610109639422,0.00029467,41518.0,41509.0,0.13632608]
[1610109639620,0.00029467,41518.0,41471.0,0.10204]
[1610109641222,0.00029467,41518.0,41505.0,0.13632608]
[1610109643222,0.13632608,41506.0,41505.0,0.13632608]
[1610109643522,0.22361608,41506.0,41505.0,0.13632608]
[1610109644022,0.22361608,41506.0,41471.0,0.10204]
[1610109644222,0.22361608,41506.0,41447.0,0.2804]
[1610109644524,0.00029465,41505.0,41447.0,0.2804]
[1610109645223,0.00029465,41505.0,41497.0,0.13632608]
[1610109647128,0.13632608,41500.0,41497.0,0.13632608]
[1610109647627,0.00029465,41499.0,41497.0,0.13632608]
[1610109647827,0.01601026,41499.0,41497.0,0.13632608]
[1610109648529,0.00029465,41499.0,41497.0,0.13632608]
[1610109648729,0.13632608,41500.0,41497.0,0.13632608]
[1610109649228,0.00029463,41499.0,41497.0,0.13632608]
[1610109650531,0.00029465,41505.0,41497.0,0.13632608]
[1610109650830,0.08729,41506.0,41497.0,0.13632608]
[1610109651133,0.00029464,41504.0,41503.0,0.13632608]
[1610109651330,0.10993,41504.0,41503.0,0.13632608]
[1610109651532,0.11022464,41504.0,41503.0,0.13632608]
[1610109655739,0.10993,41504.0,41503.0,0.13632608]
[1610109656538,0.22088608,41519.0,41503.0,0.13632608]
[1610109656839,0.01382918,41518.0,41503.0,0.13632608]
[1610109657240,0.01382918,41518.0,41517.0,0.13632608]
[1610109657440,0.01382918,41518.0,41447.0,0.33932564]
[1610109657640,0.01382918,41518.0,41448.0,0.02975618]
[1610109659439,0.00029459,41518.0,41516.0,0.13632608]
[1610109659841,0.00029459,41517.0,41447.0,0.33932564]
[1610109660243,0.00029459,41518.0,41448.0,0.02975679]
[1610109660644,0.00029459,41516.0,41448.0,0.02975679]
[1610109660845,0.00029459,41517.0,41448.0,0.02975679]
[1610109661044,0.00029459,41518.0,41448.0,0.02975679]
[1610109661244,0.00029461,41516.0,41503.0,0.13632608]
[1610109661643,0.08456,41519.0,41503.0,0.13632608]
[1610109661644,0.00029461,41517.0,41503.0,0.13632608]
[1610109661845,0.00029461,41515.0,41503.0,0.13632608]
[1610109662044,0.00029461,41516.0,41504.0,0.00029683]
[1610109662447,0.00029461,41514.0,41450.0,0.02975856]
[1610109662645,0.00029461,41515.0,41450.0,0.02946173]
[1610109662849,0.00029461,41513.0,41451.0,0.00029684]
[1610109663246,0.13632608,41481.0,41480.0,0.13632608]
[1610109663447,0.26444608,41481.0,41480.0,0.13632608]
[1610109663645,0.26444608,41481.0,41480.0,0.00029807]
[1610109663946,0.26444608,41481.0,41453.0,0.00029812]
[1610109664145,0.26444608,41481.0,41480.0,0.00029812]
[1610109664347,0.26444608,41481.0,41450.0,0.02947051]
[1610109664647,0.26444608,41481.0,41451.0,0.02947223]
[1610109664848,0.26444608,41481.0,41451.0,0.02977038]
[1610109665048,0.26444608,41481.0,41453.0,0.02977064]
[1610109665248,0.12812,41481.0,41469.0,0.13632608]
[1610109665846,0.12812,41481.0,41470.0,0.00029817]
[1610109667248,0.13632608,41471.0,41470.0,0.00029817]
[1610109667448,0.11942,41471.0,41470.0,0.00029817]
[1610109669452,0.11942,41471.0,41469.0,0.13632608]
[1610109669653,0.11942,41471.0,41470.0,0.00029817]
[1610109672457,0.12812,41481.0,41470.0,0.00029817]
[1610109672656,0.2917,41501.0,41470.0,0.00029817]
[1610109673258,0.2917,41501.0,41482.0,0.13632608]
[1610109673656,0.2917,41501.0,41483.0,0.00029814]
[1610109673857,3.7026,41527.0,41483.0,0.00029814]
[1610109674257,0.0002947,41515.0,41483.0,0.00029814]
[1610109674557,3.7026,41527.0,41483.0,0.02976761]
[1610109675257,0.00029469,41526.0,41494.0,0.13632608]
[1610109675559,0.08063469,41526.0,41494.0,0.13632608]
[1610109675857,0.00029467,41525.0,41495.0,0.0002981]
[1610109677257,0.13632608,41497.0,41495.0,0.0002981]
[1610109677558,0.22231608,41497.0,41495.0,0.0002981]
[1610109680558,0.22231608,41497.0,41467.0,0.02976253]
[1610109680760,0.22231608,41497.0,41496.0,0.00029807]
[1610109680959,0.22231608,41497.0,41468.0,0.02976622]
[1610109681260,0.22231608,41497.0,41496.0,0.00029811]
[1610109681458,0.08599,41497.0,41478.0,0.13632608]
[1610109681860,0.08599,41497.0,41479.0,0.00029814]
[1610109682659,3.6562,41506.0,41479.0,0.00029814]
[1610109682859,3.6562,41506.0,41456.0,0.02977066]
[1610109683059,3.6562,41506.0,41453.0,0.05894501]
[1610109683060,3.77221,41506.0,41480.0,0.00029816]
[1610109683259,0.11601,41506.0,41455.0,0.02947301]
[1610109683465,0.11601,41506.0,41453.0,0.05894501]
[1610109683466,0.13632608,41481.0,41451.0,0.08842317]
[1610109683660,0.13632608,41481.0,41456.0,0.02977472]
[1610109683959,0.13632608,41481.0,41440.0,2.63769715]
[1610109683960,0.24456608,41481.0,41452.0,0.029775]
[1610109684161,0.24456608,41481.0,41457.0,0.02977603]
[1610109684462,0.24456608,41481.0,41453.0,0.02977695]
[1610109684661,0.24456608,41481.0,41458.0,0.02977741]
[1610109684961,0.24456608,41481.0,41454.0,0.02977734]
[1610109685161,0.24456608,41481.0,41443.0,2.58000681]
[1610109685363,0.10824,41481.0,41453.0,0.13632608]
[1610109685563,0.10824,41481.0,41455.0,0.02977805]
[1610109685863,0.10824,41481.0,41454.0,0.02977825]
[1610109686064,0.10824,41481.0,41456.0,0.0297784]
[1610109686263,0.10824,41481.0,41455.0,0.02977935]
[1610109686563,0.58544,41481.0,41457.0,0.02978109]
[1610109686763,0.58544,41481.0,41456.0,0.02978158]
[1610109686964,0.58544,41481.0,41458.0,0.00029824]
[1610109687164,0.58544,41481.0,41458.0,0.02978237]
[1610109687366,0.13632608,41459.0,41445.0,0.13632608]
[1610109687665,0.22996608,41459.0,41435.0,2.4889705]
[1610109687866,0.22996608,41459.0,41446.0,0.02977618]
[1610109688568,0.22996608,41459.0,41427.0,2.63536464]
[1610109688569,0.22996608,41459.0,41447.0,0.02977622]
[1610109688866,0.22996608,41459.0,41435.0,0.02977679]
[1610109689168,0.22996608,41459.0,41427.0,2.63536464]
[1610109689169,0.22996608,41459.0,41448.0,0.00029114]
[1610109689366,0.13632608,41449.0,41448.0,0.13632608]
[1610109689866,0.26037608,41449.0,41448.0,0.16610337]
[1610109690467,0.26037608,41449.0,41448.0,0.02977729]
[1610109690769,0.26037608,41449.0,41432.0,0.08874936]
[1610109690968,0.26037608,41449.0,41448.0,0.02977725]
[1610109691168,0.26037608,41449.0,41433.0,0.02977798]
[1610109691467,0.13632608,41435.0,41433.0,0.13632608]
[1610109691868,0.25004608,41435.0,41434.0,0.0297797]
[1610109692667,0.25004608,41435.0,41434.0,0.02948853]
[1610109692868,0.25004608,41435.0,41434.0,0.0297797]
[1610109693869,0.25004608,41435.0,41405.0,0.07885]
[1610109693870,0.25004608,41435.0,41422.0,0.02978292]
[1610109694069,0.25004608,41435.0,41434.0,0.00029123]
[1610109694472,0.25004608,41435.0,41423.0,0.02978501]
[1610109694670,0.25004608,41435.0,41412.0,0.02949436]
[1610109694870,0.25004608,41435.0,41424.0,0.00029126]
[1610109695271,0.25004608,41435.0,41413.0,0.02978915]
[1610109695571,0.25004608,41435.0,41395.0,0.11322]
[1610109695572,0.13632608,41414.0,41404.0,0.0294996]
[1610109695771,0.13632608,41414.0,41401.0,0.13632608]
[1610109696071,0.25414608,41414.0,41405.0,0.02979384]
[1610109696374,0.25414608,41414.0,41402.0,0.02979587]
[1610109696571,0.25414608,41414.0,41406.0,0.02979652]
[1610109696773,0.25414608,41414.0,41403.0,0.02979623]
[1610109696974,0.25414608,41414.0,41391.0,0.00029136]
[1610109697275,0.25414608,41414.0,41404.0,0.00029136]
[1610109697474,0.13632608,41405.0,41392.0,0.00029136]
[1610109697675,0.22189608,41405.0,41392.0,0.00029136]
[1610109697876,0.22189608,41405.0,41390.0,0.00029136]
[1610109698174,0.22189608,41405.0,41393.0,0.00029136]
[1610109698374,0.22189608,41405.0,41391.0,0.00029138]
[1610109698575,0.22189608,41405.0,41390.0,0.0002914]
[1610109698974,0.22189608,41405.0,41392.0,0.0002914]
[1610109699175,0.22189608,41405.0,41391.0,0.00029142]
[1610109699375,0.08557,41405.0,41393.0,0.00029142]
[1610109699676,0.08557,41405.0,41392.0,0.00029142]
[1610109699975,0.08557,41405.0,41394.0,0.00029144]
[1610109700275,0.08557,41405.0,41393.0,0.00029144]
[1610109700477,0.08557,41405.0,41389.0,0.13632608]
[1610109700677,0.08557,41405.0,41394.0,0.00029144]
[1610109701478,0.13632608,41398.0,41394.0,0.13661752]
[1610109704780,0.072,41404.0,41394.0,0.13661752]
[1610109704983,0.08557,41405.0,41394.0,0.13661752]